[Event "Late-Titled-Tuesday-Blitz-September-12-2023"]
[Site "Chess.com"]
[Date "2023.09.12"]
[Round "3"]
[White "bipe137"]
[Black "Mikhail_Golubev"]
[Result "0-1"]
[WhiteElo "2428"]
[BlackElo "2601"]
[TimeControl "180+1"]
[EndTime "14:27:10 PDT"]
[Termination "Mikhail_Golubev won by resignation"]

1. d4 {[%clk 0:02:54.6]} 1... Nf6 {[%clk 0:02:59.4]} 2. c4 {[%clk 0:02:52.2]}
2... g6 {[%clk 0:02:59.5]} 3. Nc3 {[%clk 0:02:49.5]} 3... Bg7 {[%clk 0:03:00]}
4. e4 {[%clk 0:02:49.6]} 4... d6 {[%clk 0:03:00.3]} 5. Nf3 {[%clk 0:02:50.2]}
5... O-O {[%clk 0:03:00.3]} 6. Be2 {[%clk 0:02:50.8]} 6... e5 {[%clk 0:03:00.4]}
7. O-O {[%clk 0:02:51.2]} 7... Nc6 {[%clk 0:03:00]} 8. d5 {[%clk 0:02:51.2]}
8... Ne7 {[%clk 0:02:59.9]} 9. Ne1 {[%clk 0:02:51.8]} 9... Ne8 {[%clk
0:02:59.9]} 10. f4 {[%clk 0:02:50.1]} 10... exf4 {[%clk 0:02:56.8]} 11. Bxf4
{[%clk 0:02:48.5]} 11... f5 {[%clk 0:02:56.8]} 12. Bg5 {[%clk 0:02:41.1]} 12...
Nf6 {[%clk 0:02:53.5]} 13. Nd3 {[%clk 0:02:35]} 13... fxe4 {[%clk 0:02:45.4]}
14. Bxf6 {[%clk 0:02:32.2]} 14... Bxf6 {[%clk 0:02:40.3]} 15. Nxe4 {[%clk
0:02:31.6]} 15... Bd4+ {[%clk 0:02:38]} 16. Kh1 {[%clk 0:02:31.5]} 16... Nf5
{[%clk 0:02:36]} 17. Qe1 {[%clk 0:02:25.2]} 17... Qe7 {[%clk 0:02:19.3]} 18. Bf3
{[%clk 0:02:14.4]} 18... Bd7 {[%clk 0:02:15.1]} 19. Qb4 {[%clk 0:02:05.3]} 19...
Nh4 {[%clk 0:01:57.9]} 20. Rae1 {[%clk 0:01:58.7]} 20... Nxf3 {[%clk 0:01:49.3]}
21. Rxf3 {[%clk 0:01:58.9]} 21... Rxf3 {[%clk 0:01:47.4]} 22. gxf3 {[%clk
0:01:59.8]} 22... b6 {[%clk 0:01:18.3]} 23. Qd2 {[%clk 0:01:58.9]} 23... Qh4
{[%clk 0:00:49.9]} 24. Nf4 {[%clk 0:01:54.6]} 24... Be5 {[%clk 0:00:39.6]} 25.
Nd3 {[%clk 0:01:54.7]} 25... Re8 {[%clk 0:00:32.6]} 26. Nxe5 {[%clk 0:01:54]}
26... Rxe5 {[%clk 0:00:33.3]} 27. Rg1 {[%clk 0:01:50.1]} 27... Bf5 {[%clk
0:00:25.7]} 28. Ng3 {[%clk 0:01:50]} 28... Qxc4 {[%clk 0:00:23.4]} 29. Nh5
{[%clk 0:01:33.8]} 29... Kf7 {[%clk 0:00:12.8]} 30. Qg5 {[%clk 0:01:22.1]} 30...
Qxd5 {[%clk 0:00:09.2]} 31. Qf6+ {[%clk 0:01:06.4]} 31... Ke8 {[%clk 0:00:09.4]}
32. Qh8+ {[%clk 0:01:05.1]} 32... Ke7 {[%clk 0:00:09.7]} 33. Qxh7+ {[%clk
0:00:50]} 33... Kd8 {[%clk 0:00:07.6]} 34. Qh8+ {[%clk 0:00:41.4]} 34... Re8
{[%clk 0:00:07.1]} 35. Qf6+ {[%clk 0:00:41.4]} 35... Kc8 {[%clk 0:00:06.5]} 36.
Nf4 {[%clk 0:00:37.2]} 36... Qxf3+ {[%clk 0:00:05.8]} 37. Ng2 {[%clk 0:00:37.9]}
37... Be4 {[%clk 0:00:05]} 38. Qg5 {[%clk 0:00:32.6]} 38... Bc6 {[%clk
0:00:04.2]} 39. h4 {[%clk 0:00:31]} 39... Re2 {[%clk 0:00:03.6]} 40. Kh2 {[%clk
0:00:30.4]} 40... Rxg2+ {[%clk 0:00:03.3]} 41. Rxg2 {[%clk 0:00:31]} 41... Qxg2+
{[%clk 0:00:04]} 42. Qxg2 {[%clk 0:00:31.2]} 42... Bxg2 {[%clk 0:00:04.4]} 43.
Kxg2 {[%clk 0:00:32.1]} 43... Kd7 {[%clk 0:00:04.5]} 44. Kg3 {[%clk 0:00:33]}
44... Ke6 {[%clk 0:00:04.8]} 45. Kg4 {[%clk 0:00:33.9]} 45... Kf6 {[%clk
0:00:05.2]} 46. Kf4 {[%clk 0:00:34.1]} 46... d5 {[%clk 0:00:05.5]} 47. b4 {[%clk
0:00:34.4]} 47... c5 {[%clk 0:00:05.8]} 48. b5 {[%clk 0:00:34.3]} 48... c4
{[%clk 0:00:05.6]} 49. a4 {[%clk 0:00:35.2]} 49... c3 {[%clk 0:00:05.6]} 50. Ke3
{[%clk 0:00:35.8]} 50... d4+ {[%clk 0:00:04.8]} 51. Kd3 {[%clk 0:00:36.7]} 51...
g5 {[%clk 0:00:04.8]} 52. a5 {[%clk 0:00:37.6]} 52... gxh4 {[%clk 0:00:04.4]}
53. axb6 {[%clk 0:00:38.5]} 53... axb6 {[%clk 0:00:04.5]} 0-1

[Event "Late-Titled-Tuesday-Blitz-September-12-2023"]
[Site "Chess.com"]
[Date "2023.09.12"]
[Round "3"]
[White "petr577"]
[Black "reevecanada"]
[Result "1-0"]
[WhiteElo "2339"]
[BlackElo "2522"]
[TimeControl "180+1"]
[EndTime "14:27:13 PDT"]
[Termination "petr577 won by resignation"]

1. e4 {[%clk 0:03:00.9]} 1... c5 {[%clk 0:02:55.1]} 2. Nf3 {[%clk 0:03:01]} 2...
d6 {[%clk 0:02:55.3]} 3. d4 {[%clk 0:03:00.5]} 3... cxd4 {[%clk 0:02:56.2]} 4.
Qxd4 {[%clk 0:03:00.9]} 4... Nc6 {[%clk 0:02:55.2]} 5. Bb5 {[%clk 0:03:01.4]}
5... Bd7 {[%clk 0:02:54.9]} 6. Bxc6 {[%clk 0:03:02.1]} 6... Bxc6 {[%clk
0:02:55.1]} 7. Nc3 {[%clk 0:03:03]} 7... Nf6 {[%clk 0:02:55.4]} 8. Bg5 {[%clk
0:03:03.7]} 8... e6 {[%clk 0:02:55.2]} 9. O-O-O {[%clk 0:03:04.2]} 9... Be7
{[%clk 0:02:55.7]} 10. Qd3 {[%clk 0:03:04.2]} 10... Qc7 {[%clk 0:02:55.3]} 11.
Nd4 {[%clk 0:03:04.3]} 11... a6 {[%clk 0:02:54.8]} 12. f4 {[%clk 0:03:04.3]}
12... b5 {[%clk 0:02:54.3]} 13. Nxc6 {[%clk 0:02:07.1]} 13... Qxc6 {[%clk
0:02:51.4]} 14. Bxf6 {[%clk 0:02:03.9]} 14... gxf6 {[%clk 0:02:48.4]} 15. f5
{[%clk 0:02:04]} 15... b4 {[%clk 0:02:37.6]} 16. Ne2 {[%clk 0:01:40.3]} 16... e5
{[%clk 0:02:35.6]} 17. Kb1 {[%clk 0:01:29.9]} 17... a5 {[%clk 0:02:32.7]} 18.
Ng3 {[%clk 0:01:28.4]} 18... h5 {[%clk 0:02:32]} 19. Nf1 {[%clk 0:01:26.9]}
19... a4 {[%clk 0:02:19.2]} 20. Ne3 {[%clk 0:01:20.4]} 20... a3 {[%clk
0:02:19.2]} 21. Qd5 {[%clk 0:01:02.6]} 21... Qa6 {[%clk 0:02:07.9]} 22. b3
{[%clk 0:00:56.7]} 22... Rc8 {[%clk 0:01:51.6]} 23. Nc4 {[%clk 0:00:43]} 23...
Rc6 {[%clk 0:01:48.1]} 24. Rd3 {[%clk 0:00:35.3]} 24... h4 {[%clk 0:01:39.9]}
25. Rhd1 {[%clk 0:00:31]} 25... Kf8 {[%clk 0:01:33.1]} 26. Rh3 {[%clk
0:00:21.4]} 26... Rg8 {[%clk 0:01:14.9]} 27. g3 {[%clk 0:00:20.5]} 27... Kg7
{[%clk 0:00:59.5]} 28. Rxh4 {[%clk 0:00:19.8]} 28... Rgc8 {[%clk 0:01:00]} 29.
Rg4+ {[%clk 0:00:18.2]} 29... Kf8 {[%clk 0:00:59.5]} 30. h4 {[%clk 0:00:16.4]}
30... Rxc4 {[%clk 0:00:48.7]} 31. bxc4 {[%clk 0:00:17.3]} 31... Rxc4 {[%clk
0:00:48.1]} 32. h5 {[%clk 0:00:16.1]} 32... Rc3 {[%clk 0:00:40]} 33. h6 {[%clk
0:00:13.8]} 33... b3 {[%clk 0:00:35.5]} 34. cxb3 {[%clk 0:00:12.3]} 34... Ke8
{[%clk 0:00:19]} 35. h7 {[%clk 0:00:11.3]} 35... Bf8 {[%clk 0:00:19.4]} 36. h8=Q
{[%clk 0:00:11.3]} 36... Qe2 {[%clk 0:00:19.9]} 37. Qd2 {[%clk 0:00:10.9]} 37...
Qf3 {[%clk 0:00:18.9]} 38. Qh5 {[%clk 0:00:08.1]} 38... Be7 {[%clk 0:00:13.7]}
39. Rg8+ {[%clk 0:00:07.2]} 39... Kd7 {[%clk 0:00:14.6]} 40. Qxf3 {[%clk
0:00:07.7]} 40... Rxf3 {[%clk 0:00:15.5]} 41. Rg7 {[%clk 0:00:07.8]} 41... Ke8
{[%clk 0:00:15.2]} 42. Rg8+ {[%clk 0:00:07.7]} 42... Kd7 {[%clk 0:00:15.1]} 43.
Ra8 {[%clk 0:00:08.3]} 43... Kc6 {[%clk 0:00:14.5]} 44. Ra7 {[%clk 0:00:08.2]}
44... Kb6 {[%clk 0:00:14.8]} 45. Rxe7 {[%clk 0:00:08.2]} 1-0

[Event "Late-Titled-Tuesday-Blitz-September-12-2023"]
[Site "Chess.com"]
[Date "2023.09.12"]
[Round "3"]
[White "KorolDimitriy75"]
[Black "lilylg"]
[Result "1-0"]
[WhiteElo "2382"]
[BlackElo "2192"]
[TimeControl "180+1"]
[EndTime "14:27:14 PDT"]
[Termination "KorolDimitriy75 won on time"]

1. d4 {[%clk 0:02:55.7]} 1... d5 {[%clk 0:02:40.3]} 2. c4 {[%clk 0:02:52]} 2...
e6 {[%clk 0:02:39.4]} 3. Nc3 {[%clk 0:02:52.2]} 3... c6 {[%clk 0:02:39.3]} 4. e3
{[%clk 0:02:51.7]} 4... f5 {[%clk 0:02:38.9]} 5. Nf3 {[%clk 0:02:47.6]} 5... Nf6
{[%clk 0:02:39.5]} 6. Ne5 {[%clk 0:02:47.5]} 6... Bd6 {[%clk 0:02:39.6]} 7. f4
{[%clk 0:02:47.4]} 7... O-O {[%clk 0:02:39.8]} 8. Be2 {[%clk 0:02:47.3]} 8... b6
{[%clk 0:02:38.3]} 9. O-O {[%clk 0:02:46.6]} 9... Bb7 {[%clk 0:02:38.6]} 10. Bd2
{[%clk 0:02:45.6]} 10... c5 {[%clk 0:02:38.9]} 11. Qb3 {[%clk 0:01:48.6]} 11...
cxd4 {[%clk 0:02:18.9]} 12. exd4 {[%clk 0:01:47.2]} 12... Nc6 {[%clk 0:02:17.7]}
13. Be3 {[%clk 0:01:28]} 13... Rc8 {[%clk 0:02:06.6]} 14. c5 {[%clk 0:00:59.6]}
14... bxc5 {[%clk 0:01:59.9]} 15. Qxb7 {[%clk 0:00:54.4]} 15... Nxd4 {[%clk
0:00:55.3]} 16. Bxd4 {[%clk 0:00:21.7]} 16... cxd4 {[%clk 0:00:55.2]} 17. Nb5
{[%clk 0:00:21.4]} 17... Bc5 {[%clk 0:00:50.9]} 18. Bd3 {[%clk 0:00:18.5]} 18...
Ne4 {[%clk 0:00:20.7]} 19. Rac1 {[%clk 0:00:17.7]} 19... Rb8 {[%clk 0:00:19.9]}
20. Qa6 {[%clk 0:00:15.1]} 20... Rb6 {[%clk 0:00:20.1]} 21. Qa4 {[%clk
0:00:14.5]} 21... Bd6 {[%clk 0:00:13.7]} 22. Nxd6 {[%clk 0:00:13.8]} 22... Rxd6
{[%clk 0:00:11.1]} 23. Qxd4 {[%clk 0:00:12.4]} 23... Qb6 {[%clk 0:00:09.1]} 24.
Qxb6 {[%clk 0:00:12]} 24... axb6 {[%clk 0:00:08.8]} 25. Bxe4 {[%clk 0:00:11.6]}
25... fxe4 {[%clk 0:00:08.6]} 26. g3 {[%clk 0:00:11]} 26... d4 {[%clk
0:00:08.3]} 27. Rfe1 {[%clk 0:00:10.5]} 27... e3 {[%clk 0:00:08.3]} 28. Rcd1
{[%clk 0:00:09.5]} 28... Rfd8 {[%clk 0:00:07.6]} 29. Rd3 {[%clk 0:00:09.2]}
29... Kf8 {[%clk 0:00:05.3]} 30. Red1 {[%clk 0:00:08.3]} 30... Ke7 {[%clk
0:00:05.1]} 31. Nf3 {[%clk 0:00:08.2]} 31... e2 {[%clk 0:00:04.1]} 32. Re1
{[%clk 0:00:08.1]} 32... Rc8 {[%clk 0:00:04.1]} 33. Rxe2 {[%clk 0:00:08.3]}
33... Rc1+ {[%clk 0:00:04.2]} 34. Kf2 {[%clk 0:00:08]} 34... Rh1 {[%clk
0:00:03.6]} 35. Kg2 {[%clk 0:00:07.7]} 35... Rb1 {[%clk 0:00:03.1]} 36. Red2
{[%clk 0:00:07.9]} 36... Rc6 {[%clk 0:00:02.5]} 37. Rxd4 {[%clk 0:00:07.9]}
37... Rcc1 {[%clk 0:00:02.6]} 38. Ne5 {[%clk 0:00:07.9]} 38... Rg1+ {[%clk
0:00:02.2]} 39. Kh3 {[%clk 0:00:08.3]} 39... h5 {[%clk 0:00:02.5]} 40. Rd7+
{[%clk 0:00:08.2]} 40... Ke8 {[%clk 0:00:02.1]} 41. Rxg7 {[%clk 0:00:07.8]} 1-0

[Event "Late-Titled-Tuesday-Blitz-September-12-2023"]
[Site "Chess.com"]
[Date "2023.09.12"]
[Round "3"]
[White "Zhigalko_Sergei"]
[Black "adiosabu"]
[Result "1/2-1/2"]
[WhiteElo "2874"]
[BlackElo "2595"]
[TimeControl "180+1"]
[EndTime "14:27:20 PDT"]
[Termination "Game drawn - insufficient material"]

1. e4 {[%clk 0:03:00.9]} 1... c5 {[%clk 0:02:57.1]} 2. c3 {[%clk 0:03:00.5]}
2... d5 {[%clk 0:02:55.9]} 3. exd5 {[%clk 0:03:01.4]} 3... Qxd5 {[%clk
0:02:56.3]} 4. d4 {[%clk 0:03:02]} 4... e6 {[%clk 0:02:56.4]} 5. Nf3 {[%clk
0:03:02.4]} 5... Nf6 {[%clk 0:02:56.1]} 6. Na3 {[%clk 0:02:56.4]} 6... Qd8
{[%clk 0:02:52.2]} 7. Nc4 {[%clk 0:02:53.1]} 7... Nc6 {[%clk 0:02:47.1]} 8. Be3
{[%clk 0:02:52.2]} 8... cxd4 {[%clk 0:02:45]} 9. Nxd4 {[%clk 0:02:51.7]} 9...
Nxd4 {[%clk 0:02:44.8]} 10. Bxd4 {[%clk 0:02:50.4]} 10... Be7 {[%clk 0:02:43.4]}
11. Bd3 {[%clk 0:02:46.2]} 11... O-O {[%clk 0:02:38.4]} 12. O-O {[%clk
0:02:40.1]} 12... b6 {[%clk 0:02:37]} 13. Qf3 {[%clk 0:02:38.6]} 13... Qd5
{[%clk 0:02:36.4]} 14. Qg3 {[%clk 0:01:49.6]} 14... Bb7 {[%clk 0:02:12.5]} 15.
Rfe1 {[%clk 0:01:44.1]} 15... Nh5 {[%clk 0:02:01]} 16. Qh3 {[%clk 0:01:42.6]}
16... Qxg2+ {[%clk 0:01:56.2]} 17. Qxg2 {[%clk 0:01:39.6]} 17... Bxg2 {[%clk
0:01:57.1]} 18. Bxh7+ {[%clk 0:01:32.7]} 18... Kxh7 {[%clk 0:01:58]} 19. Kxg2
{[%clk 0:01:33.5]} 19... Rad8 {[%clk 0:01:46.4]} 20. Rad1 {[%clk 0:01:29.5]}
20... Rd5 {[%clk 0:01:45]} 21. Be3 {[%clk 0:01:09.4]} 21... Rfd8 {[%clk
0:01:42.4]} 22. Rxd5 {[%clk 0:01:09.3]} 22... Rxd5 {[%clk 0:01:41.7]} 23. a4
{[%clk 0:01:07.1]} 23... g5 {[%clk 0:01:26]} 24. Re2 {[%clk 0:00:54.7]} 24...
Bc5 {[%clk 0:01:20.7]} 25. Rd2 {[%clk 0:00:49.1]} 25... Bxe3 {[%clk 0:01:20.4]}
26. fxe3 {[%clk 0:00:50]} 26... Kg6 {[%clk 0:01:14.6]} 27. Rxd5 {[%clk 0:00:45]}
27... exd5 {[%clk 0:01:15.5]} 28. Ne5+ {[%clk 0:00:45.8]} 28... Kf6 {[%clk
0:01:12.8]} 29. Nc6 {[%clk 0:00:42.7]} 29... a5 {[%clk 0:01:05.8]} 30. b4 {[%clk
0:00:38.3]} 30... axb4 {[%clk 0:01:04.2]} 31. cxb4 {[%clk 0:00:39.2]} 31... Ke6
{[%clk 0:01:03.4]} 32. a5 {[%clk 0:00:29.5]} 32... bxa5 {[%clk 0:01:03.2]} 33.
bxa5 {[%clk 0:00:30.4]} 33... Kd6 {[%clk 0:01:02.7]} 34. Nd8 {[%clk 0:00:20.7]}
34... Kc5 {[%clk 0:00:54.4]} 35. Nxf7 {[%clk 0:00:19]} 35... g4 {[%clk
0:00:53.9]} 36. Ne5 {[%clk 0:00:11.3]} 36... Kb5 {[%clk 0:00:52]} 37. Nxg4
{[%clk 0:00:06.5]} 37... Kxa5 {[%clk 0:00:52.5]} 38. Kf3 {[%clk 0:00:03.5]}
38... Kb5 {[%clk 0:00:51.8]} 39. Ne5 {[%clk 0:00:03.4]} 39... Kc5 {[%clk
0:00:48]} 40. h4 {[%clk 0:00:03.7]} 40... Kd6 {[%clk 0:00:47.3]} 41. Nd3 {[%clk
0:00:03.9]} 41... Nf6 {[%clk 0:00:45.3]} 42. Kf4 {[%clk 0:00:04]} 42... Ke6
{[%clk 0:00:45.6]} 43. Nc5+ {[%clk 0:00:03.6]} 43... Kf7 {[%clk 0:00:45.8]} 44.
Kf5 {[%clk 0:00:02.6]} 44... Ne8 {[%clk 0:00:39.9]} 45. Nb7 {[%clk 0:00:02.3]}
45... Kg7 {[%clk 0:00:39.7]} 46. Ke5 {[%clk 0:00:02.4]} 46... Nf6 {[%clk
0:00:39.3]} 47. Nd6 {[%clk 0:00:02.4]} 47... Ng4+ {[%clk 0:00:37.9]} 48. Kd4
{[%clk 0:00:02.5]} 48... Kh6 {[%clk 0:00:37.7]} 49. Nf5+ {[%clk 0:00:01.5]}
49... Kg6 {[%clk 0:00:38]} 50. Kxd5 {[%clk 0:00:02.1]} 50... Kxf5 {[%clk
0:00:37.4]} 51. e4+ {[%clk 0:00:02.9]} 51... Kf4 {[%clk 0:00:36.8]} 52. h5
{[%clk 0:00:03.3]} 52... Nf6+ {[%clk 0:00:36.6]} 53. Kd6 {[%clk 0:00:03.9]}
53... Nxe4+ {[%clk 0:00:36.9]} 54. Kd7 {[%clk 0:00:03.9]} 54... Kg5 {[%clk
0:00:37]} 55. h6 {[%clk 0:00:04.8]} 55... Nf6+ {[%clk 0:00:37.1]} 56. Ke6 {[%clk
0:00:04.2]} 56... Nh7 {[%clk 0:00:37.4]} 57. Kf7 {[%clk 0:00:04.3]} 57... Kxh6
{[%clk 0:00:38]} 1/2-1/2

[Event "Late-Titled-Tuesday-Blitz-September-12-2023"]
[Site "Chess.com"]
[Date "2023.09.12"]
[Round "3"]
[White "Cambek64"]
[Black "Nor1lsk"]
[Result "1-0"]
[WhiteElo "2488"]
[BlackElo "2741"]
[TimeControl "180+1"]
[EndTime "14:27:22 PDT"]
[Termination "Cambek64 won on time"]

1. e4 {[%clk 0:02:53.4]} 1... c5 {[%clk 0:02:59.6]} 2. Nf3 {[%clk 0:02:53.1]}
2... e6 {[%clk 0:02:59.6]} 3. d3 {[%clk 0:02:52.8]} 3... Nc6 {[%clk 0:02:59.3]}
4. Nbd2 {[%clk 0:02:52.8]} 4... g6 {[%clk 0:02:48.7]} 5. g3 {[%clk 0:02:48.2]}
5... Bg7 {[%clk 0:02:48.6]} 6. Bg2 {[%clk 0:02:49]} 6... Nge7 {[%clk 0:02:49.2]}
7. O-O {[%clk 0:02:49.3]} 7... O-O {[%clk 0:02:49.8]} 8. Re1 {[%clk 0:02:45.7]}
8... d6 {[%clk 0:02:49.7]} 9. h4 {[%clk 0:02:43.4]} 9... h6 {[%clk 0:02:49.1]}
10. h5 {[%clk 0:02:43.1]} 10... g5 {[%clk 0:02:49]} 11. c3 {[%clk 0:02:41.1]}
11... e5 {[%clk 0:02:49]} 12. Nc4 {[%clk 0:02:40]} 12... Bg4 {[%clk 0:02:46.2]}
13. Ne3 {[%clk 0:02:33.5]} 13... Bxh5 {[%clk 0:02:46.1]} 14. g4 {[%clk
0:02:34.2]} 14... Bg6 {[%clk 0:02:46.1]} 15. Nf5 {[%clk 0:02:34.9]} 15... f6
{[%clk 0:02:38.8]} 16. Qb3+ {[%clk 0:02:33.3]} 16... Bf7 {[%clk 0:02:32.8]} 17.
Qxb7 {[%clk 0:02:33.7]} 17... Nxf5 {[%clk 0:02:14.5]} 18. exf5 {[%clk
0:02:20.1]} 18... Qb6 {[%clk 0:02:03.4]} 19. Qxb6 {[%clk 0:02:10.4]} 19... axb6
{[%clk 0:02:04.3]} 20. Nd2 {[%clk 0:02:08.2]} 20... d5 {[%clk 0:02:02.3]} 21. a3
{[%clk 0:02:04.7]} 21... Rfd8 {[%clk 0:01:59.2]} 22. Nf1 {[%clk 0:01:58.8]}
22... Na5 {[%clk 0:01:55.7]} 23. Bd2 {[%clk 0:01:58.2]} 23... Nb3 {[%clk
0:01:55.5]} 24. Rad1 {[%clk 0:01:58.9]} 24... Ra4 {[%clk 0:01:53.9]} 25. f3
{[%clk 0:01:57]} 25... Nxd2 {[%clk 0:01:42.7]} 26. Nxd2 {[%clk 0:01:53.1]} 26...
b5 {[%clk 0:01:42.5]} 27. Kf2 {[%clk 0:01:44.7]} 27... Bf8 {[%clk 0:01:41.9]}
28. Ke2 {[%clk 0:01:44.1]} 28... b4 {[%clk 0:01:41.4]} 29. axb4 {[%clk
0:01:43.1]} 29... cxb4 {[%clk 0:01:41.7]} 30. Ra1 {[%clk 0:01:43]} 30... Rda8
{[%clk 0:01:39.4]} 31. Rxa4 {[%clk 0:01:40.5]} 31... Rxa4 {[%clk 0:01:40.3]} 32.
c4 {[%clk 0:01:39.9]} 32... dxc4 {[%clk 0:01:33.2]} 33. Nxc4 {[%clk 0:01:37.8]}
33... Bc5 {[%clk 0:01:23.4]} 34. Rb1 {[%clk 0:01:37.7]} 34... Bd4 {[%clk
0:01:21.9]} 35. Kd2 {[%clk 0:01:37.4]} 35... b3 {[%clk 0:01:15.9]} 36. Bf1
{[%clk 0:01:37.8]} 36... Ra2 {[%clk 0:01:10.8]} 37. Kc1 {[%clk 0:01:34.4]} 37...
Bd5 {[%clk 0:01:04.9]} 38. Be2 {[%clk 0:01:34.6]} 38... Kg7 {[%clk 0:01:02.9]}
39. Kd2 {[%clk 0:01:16.7]} 39... h5 {[%clk 0:00:52.5]} 40. gxh5 {[%clk
0:01:14.6]} 40... Kh6 {[%clk 0:00:52.4]} 41. Bd1 {[%clk 0:01:14.8]} 41... Ra8
{[%clk 0:00:38]} 42. Ne3 {[%clk 0:01:13]} 42... Bxe3+ {[%clk 0:00:32.5]} 43.
Kxe3 {[%clk 0:01:12.7]} 43... Ra4 {[%clk 0:00:32.2]} 44. Rc1 {[%clk 0:01:09.5]}
44... Ra2 {[%clk 0:00:32]} 45. Rc5 {[%clk 0:01:08.9]} 45... Bf7 {[%clk 0:00:30]}
46. Rc6 {[%clk 0:01:07.4]} 46... Rxb2 {[%clk 0:00:22.8]} 47. Rxf6+ {[%clk
0:01:05.5]} 47... Kg7 {[%clk 0:00:23.3]} 48. Rb6 {[%clk 0:01:05.8]} 48... Bxh5
{[%clk 0:00:21.2]} 49. f6+ {[%clk 0:00:59]} 49... Kg6 {[%clk 0:00:06.1]} 50.
Bxb3 {[%clk 0:00:58.6]} 50... Rh2 {[%clk 0:00:02.8]} 51. f7+ {[%clk 0:00:57.9]}
51... Kg7 {[%clk 0:00:02.9]} 52. Rb8 {[%clk 0:00:55]} 52... Bxf7 {[%clk
0:00:01.9]} 53. Rb7 {[%clk 0:00:55.2]} 1-0

[Event "Late-Titled-Tuesday-Blitz-September-12-2023"]
[Site "Chess.com"]
[Date "2023.09.12"]
[Round "3"]
[White "aa175"]
[Black "ckgchess"]
[Result "0-1"]
[WhiteElo "2606"]
[BlackElo "2884"]
[TimeControl "180+1"]
[EndTime "14:27:23 PDT"]
[Termination "ckgchess won by checkmate"]

1. d4 {[%clk 0:03:00.9]} 1... Nf6 {[%clk 0:03:00]} 2. Nf3 {[%clk 0:02:58.5]}
2... e6 {[%clk 0:03:00.1]} 3. Bf4 {[%clk 0:02:58]} 3... d5 {[%clk 0:02:59.4]} 4.
e3 {[%clk 0:02:57.5]} 4... Bd6 {[%clk 0:02:59.9]} 5. Nbd2 {[%clk 0:02:56.6]}
5... O-O {[%clk 0:02:56.4]} 6. Bd3 {[%clk 0:02:56.2]} 6... c5 {[%clk 0:02:56.7]}
7. c3 {[%clk 0:02:52.5]} 7... Bxf4 {[%clk 0:02:51]} 8. exf4 {[%clk 0:02:49.7]}
8... cxd4 {[%clk 0:02:51.5]} 9. Nxd4 {[%clk 0:02:45.9]} 9... Qc7 {[%clk
0:02:51.8]} 10. g3 {[%clk 0:02:39.8]} 10... e5 {[%clk 0:02:52.4]} 11. fxe5
{[%clk 0:02:40.7]} 11... Qxe5+ {[%clk 0:02:53.3]} 12. Qe2 {[%clk 0:02:40.3]}
12... Qc7 {[%clk 0:02:51.5]} 13. O-O {[%clk 0:02:38.3]} 13... Re8 {[%clk
0:02:51.1]} 14. Qf3 {[%clk 0:02:36.2]} 14... Bg4 {[%clk 0:02:48.3]} 15. Qg2
{[%clk 0:02:32.1]} 15... Nc6 {[%clk 0:02:46]} 16. N2b3 {[%clk 0:01:53.2]} 16...
a6 {[%clk 0:02:11.4]} 17. f3 {[%clk 0:01:49.6]} 17... Bd7 {[%clk 0:02:10.7]} 18.
Rfe1 {[%clk 0:01:45.5]} 18... Ne5 {[%clk 0:02:10.7]} 19. Bf1 {[%clk 0:01:43.8]}
19... Nc4 {[%clk 0:02:09.7]} 20. Qf2 {[%clk 0:01:33.7]} 20... b5 {[%clk
0:02:05.3]} 21. Bd3 {[%clk 0:01:24.2]} 21... a5 {[%clk 0:02:00.3]} 22. Rxe8+
{[%clk 0:01:07.6]} 22... Rxe8 {[%clk 0:02:00.1]} 23. Re1 {[%clk 0:01:04]} 23...
Rxe1+ {[%clk 0:01:24.4]} 24. Qxe1 {[%clk 0:01:04.9]} 24... Nxb2 {[%clk
0:01:24.8]} 25. Bxb5 {[%clk 0:00:58.4]} 25... Bxb5 {[%clk 0:01:21.5]} 26. Nxb5
{[%clk 0:00:59.3]} 26... Qb6+ {[%clk 0:01:16.5]} 27. N3d4 {[%clk 0:00:57.2]}
27... h6 {[%clk 0:01:06.2]} 28. Qe7 {[%clk 0:00:56.4]} 28... Nc4 {[%clk
0:00:54.2]} 29. Kg2 {[%clk 0:00:46.8]} 29... a4 {[%clk 0:00:45.5]} 30. g4 {[%clk
0:00:46.8]} 30... Qb8 {[%clk 0:00:36.3]} 31. h4 {[%clk 0:00:24]} 31... Qf4
{[%clk 0:00:34.9]} 32. Nf5 {[%clk 0:00:24.3]} 32... h5 {[%clk 0:00:14.6]} 33.
Qc7 {[%clk 0:00:14.4]} 33... Ne5 {[%clk 0:00:12.8]} 34. Qc8+ {[%clk 0:00:09]}
34... Kh7 {[%clk 0:00:12.7]} 35. g5 {[%clk 0:00:08.6]} 35... Qxf3+ {[%clk
0:00:12.4]} 36. Kg1 {[%clk 0:00:08.3]} 36... Qd1+ {[%clk 0:00:10.7]} 37. Kg2
{[%clk 0:00:06.8]} 37... Qg4+ {[%clk 0:00:09.6]} 38. Kf1 {[%clk 0:00:05.6]}
38... Ne4 {[%clk 0:00:08.7]} 39. Nbd4 {[%clk 0:00:03.8]} 39... Qd1+ {[%clk
0:00:08.3]} 40. Kg2 {[%clk 0:00:03.7]} 40... Qd2+ {[%clk 0:00:07.5]} 41. Kg1
{[%clk 0:00:02.3]} 41... Qf2+ {[%clk 0:00:07.2]} 42. Kh1 {[%clk 0:00:02.9]}
42... Ng4 {[%clk 0:00:04.8]} 43. g6+ {[%clk 0:00:02.3]} 43... fxg6 {[%clk
0:00:05.7]} 44. Qc7 {[%clk 0:00:01.9]} 44... Qf1# {[%clk 0:00:04.4]} 0-1